fUSD/lending_fUSD_20240227
["ID","MTS","AMOUNT","RATE_DAILY","PERIOD"]
[315393853,1709007035492,-3251.02,0.00017905,2]
[315393854,1709007035502,-647.29,0.00017921,2]
[315393855,1709007035512,-164.16,0.00018067,2]
[315393856,1709007035522,-390.5,0.00018067,2]
[315393857,1709007035533,-1197.57,0.00018081,2]
[315393858,1709007035544,-190.01,0.00018108,2]
[315393859,1709007035555,-250.0,0.00018109,2]
[315393860,1709007035566,-200.0,0.00018109,2]
[315393862,1709007035575,-200.0,0.00018128,2]
[315393864,1709007035585,-4174.55486146,0.00018146,2]
[315393865,1709007035595,-10847.15,0.00018147,2]
[315393866,1709007035605,-3077.25,0.00018163,2]
[315393867,1709007035615,-203.0,0.00018169,3]
[315393868,1709007035626,-11072.36,0.00018179,2]
[315393869,1709007035636,-164.16,0.00018184,2]
[315393870,1709007035646,-935.15,0.00018203,2]
[315393871,1709007035657,-357.12,0.00018242,2]
[315393872,1709007035667,-179.62,0.00018252,2]
[315393873,1709007035677,-166.39,0.00018289,2]
[315393874,1709007035687,-164.16,0.00018302,2]
[315393875,1709007035697,-2621.1,0.00018378,2]
[315393876,1709007035706,-499.99,0.00018378,2]
[315393877,1709007035716,-200.0,0.00018414,2]
[315393878,1709007035726,-164.16,0.0001842,2]
[315393879,1709007035736,-2188.56622827,0.00018502,2]
[315393880,1709007035746,-429.0,0.00018529,2]
[315393881,1709007035756,-164.16,0.00018537,2]
[315393882,1709007035766,-164.16,0.00018655,2]
[315393883,1709007035776,-164.16,0.00018773,2]
[315393884,1709007035785,-295.33977676,0.0001888,2]
[315393885,1709007035795,-164.16,0.0001889,2]
[315393886,1709007035806,-203.93701165,0.00018918,2]
[315393887,1709007035817,-203.93701146,0.00018963,2]
[315393888,1709007035827,-164.16,0.00019008,2]
[315393889,1709007035837,-203.93701146,0.00019009,2]
[315393890,1709007035848,-203.93701146,0.00019054,2]
[315393891,1709007035858,-424.18,0.00019078,2]
[315393892,1709007035868,-203.93701146,0.00019099,2]
[315393893,1709007035877,-150.0,0.00019134,2]
[315393894,1709007035886,-203.93701146,0.00019145,2]
[315393895,1709007035896,-150.0,0.00019145,2]
[315393896,1709007035905,-500.0,0.00019178,2]
[315393897,1709007035915,-244.52,0.00019178,2]
[315393898,1709007035924,-424.18,0.00019178,2]
[315393899,1709007035933,-203.93701146,0.0001919,2]
[315393900,1709007035942,-203.93701146,0.00019236,2]
[315393901,1709007035951,-150.99,0.00019251,2]
[315393902,1709007035960,-203.93701146,0.00019281,2]
[315393903,1709007035970,-203.0,0.000193,5]
[315393904,1709007035979,-164.08,0.000193,2]
[315393905,1709007035989,-203.93701146,0.00019326,2]
[315393906,1709007035998,-203.93701146,0.00019372,2]
[315393907,1709007036010,-203.93701146,0.00019417,2]
[315393908,1709007036020,-331.61,0.00019459,2]
[315393909,1709007036029,-203.93701146,0.00019462,2]
[315393910,1709007036038,-3947.7,0.00019504,2]
[315393911,1709007036048,-203.93701146,0.00019508,2]
[315393912,1709007036058,-826.78,0.00019534,2]
[315393913,1709007036067,-150.0,0.00019534,2]
[315393914,1709007036076,-203.93701146,0.00019553,2]
[315393915,1709007036086,-203.93701146,0.00019599,2]
[315393916,1709007036097,-203.93701146,0.00019644,2]
[315393917,1709007036106,-300.0,0.00019671,2]
[315393918,1709007036116,-203.93701146,0.00019689,2]
[315393919,1709007036125,-203.93701146,0.00019735,2]
[315393920,1709007036135,-8042.6304,0.00019779,2]
[315393921,1709007036145,-2868.50680637,0.0001978,2]
[315393922,1709007036155,-203.93701146,0.0001978,2]
[315393923,1709007036167,-172.24028334,0.0001978,2]
[315393924,1709007036177,-294.02756591,0.0001978,2]
[315393925,1709007036187,-417.05815132,0.0001978,2]
[315393926,1709007036197,-268.6676847,0.0001978,2]
[315393927,1709007036207,-172.64571038,0.0001978,2]
[315393928,1709007036216,-263.23126812,0.0001978,2]
[315393929,1709007036225,-1500.0,0.000198,2]
[315393930,1709007036235,-230.75303428,0.00019878,2]
[315393931,1709007036245,-607.52872213,0.00019879,2]
[315393932,1709007036254,-104898.15858341,0.0001988,2]
[315393933,1709007036279,-157590.8205792,0.0001988,2]
[315393934,1709007036396,-0.60085119,0.0001988,2]
[315393935,1709007036419,-5540.5,0.0001988,2]
[315393936,1709007036431,-1393.33356765,0.0001988,2]
[315393937,1709007036448,-158064.35682128,0.0001988,2]
[315393940,1709007037756,-156510.24089563,0.0001988,2]
[315393941,1709007037773,-32010.0000001,0.0001988,2]
[315393942,1709007037788,-1389.55,0.0001988,2]
[315393943,1709007037801,-456.89962907,0.0001988,2]
[315393944,1709007037814,-3418.81869813,0.0001988,2]
[315393945,1709007037825,-102897.18278663,0.0001988,2]
[315393946,1709007037837,-742.59,0.0001988,2]
[315393947,1709007037850,-3719.67456001,0.0001988,2]
[315393948,1709007037870,-152769.19310228,0.0001988,2]
[315393949,1709007037893,-67268.31949739,0.0001988,2]
[315393972,1709007038337,-593.74330144,0.0001988,2]
[315393990,1709007038513,-1.75747524,0.0001988,2]
[315394174,1709007040393,-660.4029,0.0001988,2]
[315394253,1709007041115,-55777.0,0.0001988,2]
[315394262,1709007041191,-2875.82477649,0.0001988,2]
[315394282,1709007041383,-1329.59525972,0.0001988,2]
[315394284,1709007041400,-710.612,0.0001988,2]
[315394286,1709007041417,-32105.6639999,0.0001988,2]
[315394288,1709007041428,-890.92863917,0.0001988,2]
[315394609,1709007045122,-378.79709428,0.0001978,2]
[315394611,1709007045134,-507.11301825,0.0001988,2]
[315394612,1709007045242,-346.98199227,0.0001988,2]
[315394613,1709007045294,-287207.56116478,0.0001988,2]
[315394614,1709007045310,-4394.84063156,0.0001988,2]
[315394615,1709007045324,-4277.63370626,0.0001988,2]
[315394616,1709007045337,-338.72698102,0.0001988,2]
[315394617,1709007045513,-3920.315,0.0001988,2]
[315394620,1709007045599,-126835.01994653,0.0001988,2]
[315394701,1709007046160,-1294.07466864,0.0001978,2]
[315394704,1709007046171,-82093.44548462,0.0001988,2]
[315394707,1709007046183,-22362.49339921,0.0001988,2]
[315394712,1709007046194,-256.01929268,0.0001988,2]
[315394715,1709007046209,-551.10994215,0.0001988,2]
[315394722,1709007046239,-8080.07093153,0.0001988,2]
[315394727,1709007046261,-1388.94809441,0.0001988,2]
[315394736,1709007046298,-1199250.28263363,0.0001988,2]
[315394741,1709007046317,-16681.01275459,0.0001988,2]
[315394788,1709007048366,-325.41102363,0.0001988,2]
[315394789,1709007048378,-418.42169949,0.0001988,2]
[315394790,1709007048439,-11082.4,0.0001988,2]
[315394818,1709007213890,-1042.53818806,0.00015253,2]
[315394819,1709007213925,-198.47816748,0.00015254,2]
[315394820,1709007213959,-164.08,0.00015255,2]
[315394822,1709007218129,486.13880238,0.00015252,2]
[315394824,1709007249340,155.0,0.00015252,2]
[315394826,1709007269474,155.37393787,0.00015252,2]
[315394829,1709007484462,203.0,0.00015039,2]
[315394830,1709007488285,151.0,0.00026646,120]
[315394831,1709007784091,202.0,0.00015039,2]
[315394832,1709007825662,-4174.55486146,0.00016029,2]
[315394833,1709007825698,-1042.53818806,0.00016029,2]
[315394834,1709007825735,-1042.53818806,0.00016029,2]
[315394835,1709007825769,-1042.53818806,0.0001603,2]
[315394836,1709007825803,-910.38,0.00016722,2]
[315394837,1709007825837,-179.77,0.00018113,2]
[315394838,1709007825870,-200.0,0.00018122,2]
[315394839,1709007825903,-200.0,0.00018167,2]
[315394840,1709007825937,-18515.36114872,0.00018175,2]
[315394841,1709007826209,-4588.12611103,0.00018175,2]
[315394842,1709007830577,-155.0,0.00016028,2]
[315394843,1709007830621,-213.60121478,0.00016721,2]
[315394844,1709007830657,-796.51274025,0.00018175,2]
[315394845,1709007830974,-250.0,0.00018175,2]
[315394846,1709007831013,-190.01,0.00018239,2]
[315394847,1709007831048,-499.99,0.00018239,2]
[315394848,1709007831084,-153.55,0.00018283,2]
[315394849,1709007831119,-1746.11,0.00018293,2]
[315394850,1709007831160,-300.0,0.00018456,2]
[315394851,1709007831195,-150.0,0.00018456,2]
[315394852,1709007831229,-300.0,0.00018456,2]
[315394853,1709007831266,-1163.25,0.00018457,2]
[315394854,1709007831301,-1766.08,0.00018457,2]
[315394855,1709007845144,203.0,0.00015288,2]
[315394856,1709007845458,203.0,0.00016565,3]
[315394857,1709007847783,203.0,0.00017843,5]
[315394858,1709007864094,181.54,0.00018308,2]
[315394859,1709007887187,-150.99,0.00018688,2]
[315394860,1709007887225,-485.69,0.00018689,2]
[315394861,1709007887531,-2798.39,0.00018689,2]
[315394862,1709007887571,-150.0,0.00018737,2]
[315394863,1709007887614,-300.0,0.00018737,2]
[315394864,1709007887652,-500.0,0.00018738,2]
[315394865,1709007887689,-7083.51,0.00018738,2]
[315394866,1709007890054,150.0,0.00018753,2]
[315394867,1709007890105,500.0,0.00018753,2]
[315394868,1709007938538,881.38,0.00016905,2]
[315394869,1709007956335,-1042.53818806,0.00018832,2]
[315394870,1709007956359,-611.44,0.00018833,2]
[315394871,1709007956384,-568.36,0.00018855,2]
[315394872,1709007956406,-1623.99269694,0.00018877,2]
[315394873,1709008011288,2200.0,0.000188,2]
[315394874,1709008036060,7172.71208994,0.00018777,2]
[315394875,1709008165133,-1042.53818806,0.0001868,2]
[315394876,1709008165152,-1157.46181194,0.00018681,2]
[315394877,1709008205947,150.0,0.0001812,2]
[315394885,1709008232105,-53.0,0.0001812,2]
[315394886,1709008232114,-269.61275986,0.00018681,2]
[315394887,1709008232179,-2478.9264946,0.00018681,2]
[315394888,1709008232192,-268.55379506,0.00018681,2]
[315394889,1709008232202,-200.0,0.00018683,2]
[315394890,1709008232213,-200.0,0.00018687,2]
[315394891,1709008232224,-200.0,0.00018687,2]
[315394892,1709008232234,-220.21849254,0.00018702,2]
[315394893,1709008232243,-1080.19031006,0.00018777,2]
[315394894,1709008232253,-1644.59916084,0.000188,2]
[315394895,1709008232265,-555.40083916,0.000188,2]
[315394896,1709008232276,-378.30582155,0.000188,2]
[315394897,1709008232299,-439.540152,0.000188,2]
[315394898,1709008232311,-1382.15402645,0.000188,2]
[315394899,1709008232320,-2200.0,0.000188,2]
[315394900,1709008232330,-2200.0,0.000188,2]
[315394901,1709008232341,-2751.0,0.00018803,2]
[315394902,1709008232351,-950.54921427,0.00018803,2]
[315394903,1709008232364,-1381.44078573,0.00018803,2]
[315394904,1709008232373,-873.05,0.00018803,2]
[315394905,1709008232383,-169.21,0.00018803,2]
[315394906,1709008232393,-179.62,0.00018847,2]
[315394907,1709008232403,-200.0,0.00018879,2]
[315394908,1709008232412,-999.99,0.0001912,2]
[315394910,1709008232423,-881.38,0.00019169,2]
[315394912,1709008232434,-500.0,0.00019178,2]
[315394913,1709008232443,-499.99,0.000192,2]
[315394914,1709008232453,-300.0,0.000192,2]
[315394915,1709008232463,-424.3,0.000192,2]
[315394916,1709008232475,-203.0,0.00019429,3]
[315394917,1709008232484,-344.82,0.00019491,2]
[315394919,1709008232494,-919.07,0.00019554,2]
[315394920,1709008232503,-919.07,0.00019554,2]
[315394921,1709008232513,-949.85,0.00019554,2]
[315394922,1709008232522,-420.93,0.00019554,2]
[315394923,1709008232531,-406.91,0.00019554,2]
[315394924,1709008232541,-406.91,0.00019554,2]
[315394925,1709008232552,-406.91,0.00019554,2]
[315394926,1709008232562,-496.41,0.00019554,2]
[315394927,1709008232573,-150.0,0.000196,2]
[315394928,1709008232584,-919.42,0.000196,2]
[315394929,1709008232593,-150.0,0.000196,2]
[315394930,1709008232602,-847.89,0.000196,2]
[315394931,1709008232612,-406.91,0.000196,2]
[315394932,1709008232622,-1475.094466,0.000197,2]
[315394933,1709008232634,-200.0,0.00019721,2]
[315394934,1709008232644,-15220.6214,0.0001975,2]
[315394935,1709008232654,-386.37104062,0.00019778,2]
[315394936,1709008232664,-649.6379686,0.00019779,2]
[315394937,1709008232674,-5493.25626891,0.0001978,2]
[315394938,1709008232683,-163.02577845,0.0001978,2]
[315394939,1709008232693,-170.35631349,0.0001978,2]
[315394940,1709008232702,-191.31757544,0.0001978,2]
[315394941,1709008232711,-862.71644576,0.0001978,2]
[315394942,1709008232720,-1196.66807111,0.0001978,2]
[315394943,1709008232729,-179.1117898,0.0001978,2]
[315394944,1709008232738,-175.48751208,0.0001978,2]
[315394945,1709008232747,-424.18,0.00019807,2]
[315394946,1709008232756,-434.56,0.00019807,2]
[315394947,1709008232766,-424.18,0.00019807,2]
[315394948,1709008232775,-424.18,0.00019807,2]
[315394949,1709008232784,-424.18,0.00019807,2]
[315394950,1709008232793,-151.00496107,0.0001984,2]
[315394951,1709008232802,-485.73715182,0.00019848,2]
[315394952,1709008232811,-172.68513922,0.00019848,2]
[315394953,1709008232821,-213.60121478,0.00019848,2]
[315394954,1709008232830,-199.20873164,0.00019848,2]
[315394955,1709008232839,-1042.53818806,0.00019849,2]
[315394956,1709008232849,-509904.75322109,0.0001985,4]
[315394957,1709008232870,-16254.45235765,0.0001985,4]
[315394958,1709008232941,-13904.08744999,0.0001985,4]
[315394959,1709008239725,-0.00649319,0.000188,2]
[315394961,1709008239752,-805.0,0.000188,2]
[315394964,1709008239834,-1184.99350681,0.000188,2]
[315394965,1709008239844,-9841.02155054,0.0001985,4]
[315394966,1709008239963,-904.21,0.0001985,4]
[315394971,1709008241277,-602.52360486,0.0001985,4]
[315394972,1709008241401,-963.3516681,0.0001985,4]
[315394973,1709008241415,-948.02916508,0.0001985,4]
[315394974,1709008241476,-424.5191321,0.0001985,4]
[315394975,1709008241490,-505.53282718,0.0001985,4]
[315395075,1709008245516,-2544.25268348,0.00019849,2]
[315395078,1709008245526,-2568.53573169,0.0001985,4]
[315395081,1709008245535,-155.43749372,0.00019878,2]
[315395084,1709008245546,-1049.90916122,0.00019878,2]
[315395087,1709008245556,-311.3907687,0.00019878,2]
[315395089,1709008245565,-1212.77909687,0.00019878,2]
[315395092,1709008245575,-215.73367871,0.00019878,2]
[315395094,1709008245584,-155.22128274,0.00019878,2]
[315395096,1709008245593,-198.25817759,0.00019878,2]
[315395098,1709008245603,-301.19072658,0.00019879,5]
[315395100,1709008245612,-301.19072658,0.00019879,5]
[315395102,1709008245621,-301.19072658,0.00019879,5]
[315395104,1709008245631,-301.19072658,0.00019879,5]
[315395106,1709008245641,-301.19072655,0.00019879,5]
[315395108,1709008245651,-301.19072658,0.00019879,5]
[315395109,1709008245660,-301.19072658,0.00019879,5]
[315395111,1709008245670,-151.06115736,0.00019879,2]
[315395113,1709008245679,-204.62016545,0.00019879,2]
[315395115,1709008245689,-4987.33823048,0.00019879,2]
[315395117,1709008245699,-208.1543534,0.00019879,2]
[315395119,1709008245708,-23613.29137637,0.0001988,2]
[315395122,1709008245721,-16037.89046775,0.0001988,2]
[315395136,1709008245831,-3119.36278429,0.0001988,2]
[315395139,1709008245852,-562.28599391,0.0001988,2]
[315395141,1709008245863,-2378.19367426,0.0001988,2]
[315395143,1709008245875,-20647.49211063,0.0001988,2]
[315395148,1709008245923,-906.37909265,0.0001988,2]
[315395167,1709008245997,-2372167.52095539,0.0001988,2]
[315395180,1709008246063,-5742.216606,0.0001988,2]
[315395182,1709008246075,-29222.14329327,0.0001988,2]
[315395183,1709008246141,-255.10379202,0.0001988,2]
[315395191,1709008246276,-92.41316179,0.0001988,2]
[315395193,1709008246288,-654.81290519,0.0001988,2]
[315395195,1709008246300,-556.638,0.0001988,2]
[315395197,1709008246311,-1131.79469454,0.0001988,2]
[315395827,1709008577502,-200.0,0.0001712,2]
[315395828,1709008577543,-793.24,0.0001722,2]
[315395829,1709008577621,-200.0,0.0001846,3]
[315395830,1709008577683,-2000.0,0.00018854,2]
[315395831,1709008577719,-867.85,0.00018908,2]
[315395832,1709008577754,-1943.32,0.00018908,2]
[315395833,1709008577787,-150.0,0.00018949,2]
[315395834,1709008577818,-171.19,0.00019034,2]
[315395835,1709008577849,-510.84,0.00019069,2]
[315395836,1709008577882,-2751.0,0.00019165,2]
[315395837,1709008577914,-500.0,0.00019359,2]
[315395838,1709008577946,-200.0,0.00019359,2]
[315395839,1709008577976,-1155.13058071,0.00019452,2]
[315395840,1709008578010,-793.24,0.00019484,2]
[315395841,1709008578042,-300.0,0.00019678,2]
[315395842,1709008578073,-150.0,0.00019678,2]
[315395843,1709008578105,-971.8759542,0.00019679,2]
[315395844,1709008578138,-25001.0,0.00019681,2]
[315395845,1709008578378,-500.0,0.0001975,2]
[315395846,1709008578411,-1398.8138,0.0001978,2]
[315395847,1709008578443,-814.074,0.0001978,2]
[315395848,1709008578476,-200.0,0.000198,5]
[315395849,1709008582364,-56732.9992376,0.00019866,2]
[315395850,1709008582402,-1792.1937974,0.00019866,2]
[315395851,1709008582436,-204.62016545,0.00019879,2]
[315395853,1709008589337,-4987.33823048,0.00019879,2]
[315395854,1709008589391,-14678.12753997,0.0001988,2]
[315395893,1709009284867,200.0,0.0001512,2]
[315395899,1709009338157,23560.0,0.0001512,2]
[315395900,1709009338182,1040763.95413692,0.0001512,2]
[315395901,1709009341633,151.0,0.00026983,120]
[315395902,1709009347113,-200.0,0.00016616,3]
[315395903,1709009347133,-6.39305524,0.00016938,2]
[315395904,1709009349108,-2522.13667932,0.00016938,2]
[315395905,1709009349134,-1166.17218906,0.00016938,2]
[315395906,1709009349155,-293.88781094,0.00016939,2]
[315395907,1709009350109,-342.83107579,0.00016939,2]
[315395908,1709009354146,939869.93307104,0.0001512,2]
[315395910,1709009363150,-93.69111327,0.00016939,2]
[315395912,1709009369108,-3432.741845,0.00018021,2]
[315395913,1709009369130,-200.0,0.00018112,5]
[315395914,1709009369149,-500.0,0.00018438,2]
[315395915,1709009369168,-200.0,0.00018438,2]
[315395916,1709009369189,-200.0,0.00018503,2]
[315395917,1709009369209,-200.0,0.00018546,2]
[315395918,1709009369233,-2529.20865576,0.0001855,2]
[315395929,1709009432230,-2463.13461575,0.00018549,2]
[315395930,1709009432242,-3940.99658644,0.0001855,2]
[315395931,1709009432284,-424.42649289,0.0001855,2]
[315395932,1709009432342,-17005.36826491,0.0001855,2]
[315395933,1709009432351,-250.0,0.0001855,2]
[315395934,1709009432361,-192.82,0.0001856,10]
[315395935,1709009432371,-591.32,0.00018631,2]
[315395936,1709009432380,-433.92,0.00018667,2]
[315395937,1709009432390,-1619.43,0.00018786,2]
[315395938,1709009432399,-150.0,0.00018986,2]
[315395939,1709009432409,-2030.32,0.00018999,2]
[315395940,1709009432418,-500.0,0.00019178,2]
[315395941,1709009432428,-207.47,0.00019233,2]
[315395942,1709009432438,-499.99,0.00019233,2]
[315395943,1709009432447,-150.0,0.00019339,2]
[315395944,1709009432456,-424.18,0.00019459,2]
[315395945,1709009432466,-150.0,0.000195,2]
[315395946,1709009432475,-12058.37212657,0.0001958,2]
[315395947,1709009434482,162.35150589,0.0001512,2]
[315395948,1709009434506,39.64849411,0.0001512,2]
[315395952,1709009438384,-996.49984197,0.0001958,2]
[315395953,1709009438396,-615.25246482,0.0001958,2]
[315395954,1709009438408,-491.00779247,0.0001958,2]
[315395990,1709009440133,98.3089795,0.00017161,2]
[315396343,1709009443206,-595.5710205,0.00017161,2]
[315396348,1709009443215,-420.97657803,0.00019425,2]
[315396574,1709009445217,-272.90342197,0.00019425,2]
[315396576,1709009445226,-179.66157734,0.00019579,2]
[315396580,1709009445252,-1872.95060245,0.00019579,2]
[315396582,1709009445261,-73780.54647417,0.0001958,2]
[315396584,1709009445271,-1000.0,0.0001958,2]
[315396586,1709009445280,-200.0,0.00019608,7]
[315396587,1709009445290,-418.4336552,0.00019679,2]
[315396590,1709009445299,-1150.6932,0.0001968,2]
[315396591,1709009445308,-207.7764,0.0001968,2]
[315396593,1709009445318,-14867.3367,0.0001968,2]
[315396595,1709009445327,-33584.8917,0.0001968,2]
[315396598,1709009445336,-100000.0,0.0001968,2]
[315396599,1709009445345,-878.8092,0.0001968,2]
[315396601,1709009445355,-2457.8515,0.0001968,2]
[315396604,1709009445364,-200.0,0.0001972,2]
[315396606,1709009445374,-200.0,0.00019721,2]
[315396608,1709009445383,-200.0,0.00019721,2]
[315396610,1709009445392,-200.0,0.00019721,2]
[315396612,1709009445402,-200.0,0.00019721,2]
[315396614,1709009445411,-500.0,0.00019721,2]
[315396616,1709009445420,-200.0,0.00019721,2]
[315396618,1709009445430,-344.82,0.00019772,2]
[315396619,1709009445439,-344.82,0.00019772,2]
[315396621,1709009445449,-344.82,0.00019775,2]
[315396623,1709009445458,-344.82,0.00019775,2]
[315396625,1709009445467,-344.82,0.00019775,2]
[315396627,1709009445477,-2204.4814777,0.00019779,2]
[315396629,1709009445486,-219123.0055,0.0001978,2]
[315396631,1709009445495,-163.02577845,0.0001978,2]
[315396633,1709009445506,-170.35631349,0.0001978,2]
[315396635,1709009445515,-5434.16338716,0.0001978,2]
[315396637,1709009445524,-334.67,0.000198,2]
[315396640,1709009445533,-344.82,0.000198,2]
[315396643,1709009445542,-1000.0,0.00019829,2]
[315396647,1709009445552,-1000.0,0.00019829,2]
[315396651,1709009445561,-1000.0,0.00019829,2]
[315396654,1709009445570,-1000.0,0.00019829,2]
[315396656,1709009445579,-1000.0,0.00019829,2]
[315396658,1709009445588,-1000.0,0.00019829,2]
[315396660,1709009445598,-1000.0,0.00019829,2]
[315396661,1709009445607,-1000.0,0.00019829,2]
[315396664,1709009445616,-1000.0,0.00019829,2]
[315396665,1709009445625,-1000.0,0.00019829,2]
[315396667,1709009445634,-1000.0,0.00019829,2]
[315396669,1709009445643,-1000.0,0.00019829,2]
[315396671,1709009445652,-229.6077,0.00019829,2]
[315396673,1709009445660,-500.0,0.00019829,2]
[315396675,1709009445669,-500.0,0.00019829,2]
[315396677,1709009445678,-500.0,0.00019829,2]
[315396679,1709009445687,-500.0,0.00019829,2]
[315396682,1709009445697,-500.0,0.00019829,2]
[315396683,1709009445706,-500.0,0.00019829,2]
[315396685,1709009445716,-506.3695,0.00019829,2]
[315396687,1709009445725,-1730.763875,0.00019866,2]
[315396689,1709009445734,-56495.6001569,0.00019866,2]
[315396691,1709009445743,-266.10991184,0.0001987,2]
[315396693,1709009445752,-204.62016545,0.00019879,2]
[315396695,1709009445761,-4987.33823048,0.00019879,2]
[315396697,1709009445771,-262534.80580434,0.0001988,2]
[315396700,1709009445789,-27219.70129895,0.0001988,2]
[315396703,1709009445801,-1603.79499997,0.0001988,2]
[315396705,1709009445812,-2019.9698579,0.0001988,2]
[315396750,1709009446195,-53188.65108389,0.0001988,2]
[315396754,1709009446222,-823.52658831,0.0001988,2]
[315396776,1709009446415,-27778.77842107,0.0001988,2]
[315396778,1709009446427,-7848.50660279,0.0001988,2]
[315396781,1709009446444,-814.2018603,0.0001988,2]
[315396784,1709009446461,-20085.34121568,0.0001988,2]
[315396788,1709009446491,-19595.01088158,0.0001988,2]
[315396792,1709009446514,-432.00902886,0.0001988,2]
[315396794,1709009446526,-673.15617022,0.0001988,2]
[315396797,1709009446547,-22711.64854719,0.0001988,2]
[315396800,1709009446562,-28530.93965965,0.0001988,2]
[315396804,1709009446592,-649035.04162046,0.0001988,2]
[315396806,1709009446601,-155.0,0.0001988,2]
[315396808,1709009446610,-332.39280551,0.0001988,2]
[315396810,1709009446619,-1500.0,0.000199,2]
[315396812,1709009446628,-175.48751206,0.000199,2]
[315396814,1709009446637,-152.77678549,0.000199,2]
[315396816,1709009446646,-152.77678548,0.000199,2]
[315396818,1709009446655,-152.77678548,0.000199,2]
[315396820,1709009446664,-575.14429716,0.000199,2]
[315396822,1709009446673,-3068.3889962,0.00019958,2]
[315396824,1709009446682,-266.10991184,0.0001999,2]
[315396825,1709009446691,-40327.55510504,0.0002,4]
[315396827,1709009446701,-155.0,0.0002,2]
[315396830,1709009446711,-155.0,0.0002,2]
[315396832,1709009446719,-155468.77341775,0.0002,2]
[315396971,1709009493205,202.60702332,0.0001,2]
[315396972,1709009493230,158.49103778,0.0001,2]
[315396973,1709009493257,244.67786674,0.0001,2]
[315396974,1709009514707,4517.19950171,0.00015,10]
[315396975,1709009515700,157.78003741,6.94e-05,2]
[315396976,1709009542387,310.37505012,0.0001,2]
[315396977,1709009548472,151.56066682,0.00015,2]
[315396978,1709009553958,259.0,0.0001512,2]
[315396991,1709009650367,284.6710761,0.000125,2]
[315396997,1709009666061,2242.45808347,0.000137,2]
[315397013,1709009786229,469.96562239,0.000137,2]
[315397015,1709009806221,469.96562239,0.000137,2]
[315397017,1709009824223,469.96562239,0.000137,2]
[315397019,1709009842390,469.96562239,0.000137,2]
[315397021,1709009858470,469.96562239,0.000137,2]
[315397022,1709009878227,469.96562239,0.000137,2]
[315397024,1709009895929,213.8848203,0.000137,2]
[315397027,1709010421156,151.0,0.00026802,120]
[315397028,1709010548117,-155.0,0.0001583,2]
[315397029,1709010548140,-1090.44,0.00015831,2]
[315397030,1709010548163,-200.0,0.0001634,2]
[315397031,1709010548182,-192.16,0.00016712,2]
[315397032,1709010548203,-150.0,0.00017695,2]
[315397033,1709010548224,-500.0,0.00017715,2]
[315397034,1709010548245,-2230.42,0.00017717,2]
[315397035,1709010548266,-1125.02,0.00017728,2]
[315397036,1709010548286,-571.28,0.00017761,2]
[315397037,1709010548305,-200.0,0.00017768,2]
[315397038,1709010548326,-499.99,0.00017777,2]
[315397039,1709010548348,-150.0,0.00017777,2]
[315397040,1709010548367,-150.0,0.00017777,2]
[315397041,1709010548389,-1020.76093153,0.00017778,2]
[315397042,1709010561144,-8022.19926913,0.00017778,2]
[315397043,1709010563155,-157.11359682,0.00017778,2]
[315397044,1709010565110,-3252.16647752,0.00017778,2]
[315397051,1709010632313,-1270.173871,0.00017778,2]
[315397052,1709010632326,-1964.1773477,0.00017778,2]
[315397053,1709010632372,-664.96306147,0.00017778,2]
[315397054,1709010632384,-577.5783648,0.00017778,2]
[315397055,1709010632395,-951.75045202,0.00017778,2]
[315397056,1709010632407,-639.91916815,0.00017778,2]
[315397057,1709010632431,-5379.19745986,0.00017778,2]
[315397058,1709010632441,-192.61,0.00017808,10]
[315397059,1709010632451,-181.22,0.00017827,2]
[315397060,1709010632461,-250.0,0.00017827,2]
[315397061,1709010632471,-526.94,0.00017845,2]